bitfinex/quotes_ETHUSD_20250314
["timestamp","ask_amount","ask_price","bid_price","bid_amount"]
[1741966252231,6.01437944,1941.1,1940.7,5.87166]
[1741966252439,0.8245,1941.1,1940.8,5.15241]
[1741966252732,5.95,1941.6,1940.9,0.56676254]
[1741966252733,5.97548,1941.4,1940.9,0.56676254]
[1741966252933,10.34073944,1941.3,1940.9,5.667391]
[1741966253108,0.03813944,1941.3,1940.9,5.667351]
[1741966253306,0.03813944,1941.3,1941.0,5.15195]
[1741966253510,5.15148,1941.2,1941.0,1.0819301]
[1741966253716,0.03813944,1941.1,1940.8,5.313]
[1741966254038,5.18934944,1941.3,1940.9,5.15215]
[1741966254410,5.15146,1941.2,1940.8,13.4655]
[1741966254813,5.18934944,1941.3,1940.8,13.4653]
[1741966255139,5.95,1941.6,1941.2,5.15134]
[1741966255307,0.03813944,1941.5,1940.9,1.34653]
[1741966255641,10.30377,1941.1,1940.8,3.0]
[1741966255936,5.15161,1941.2,1940.8,6.48410364]
[1741966256137,5.18995944,1941.1,1940.8,3.0]
[1741966256710,0.03813944,1941.2,1940.9,5.15219]
[1741966256937,5.18952944,1941.3,1940.9,5.15219]
[1741966257139,0.03813944,1941.3,1941.0,5.15186]
[1741966257534,0.03813944,1941.3,1940.9,5.15217]
[1741966257535,5.18935944,1941.3,1940.9,5.15217]
[1741966257742,5.18935944,1941.3,1940.9,6.92365764]
[1741966258340,5.18935944,1941.3,1940.9,1.77148764]
[1741966258341,5.15149,1941.2,1940.9,1.77148764]
[1741966258541,10.34074944,1941.3,1940.9,6.92372764]
[1741966259052,10.34074944,1941.3,1940.9,1.77148764]
[1741966259344,5.94462,1941.1,1940.7,8.54228786]
[1741966259542,5.98275944,1941.1,1940.7,3.38960786]
[1741966259864,5.98275944,1941.1,1940.7,13.69488786]
[1741966260142,0.7929,1941.3,1940.9,5.15213]
[1741966260319,0.7929,1941.3,1940.7,8.54220786]
[1741966260320,0.03813944,1941.2,1940.7,8.54220786]
[1741966260527,0.7929,1941.3,1940.8,3.53562599]
[1741966260721,5.95,1941.6,1941.2,5.15145]
[1741966260722,6.7512,1941.6,1941.2,5.15145]
[1741966260925,11.14031944,1941.6,1941.1,8.63578364]
[1741966261149,11.10218,1941.6,1941.1,13.78737364]
[1741966261353,0.03813944,1941.5,1941.2,5.15141]
[1741966261559,5.18882944,1941.5,1941.1,8.63569364]
[1741966261742,5.15094,1941.4,1941.1,1.67876436]
[1741966262047,5.95097,1941.2,1940.9,3.0]
[1741966262249,5.98899944,1941.2,1940.8,13.95035364]
[1741966262432,0.7993,1941.2,1940.8,8.79810364]
[1741966262615,0.7993,1941.2,1940.8,14.0020928]
[1741966262812,0.7993,1941.4,1940.9,8.15222]
[1741966263041,5.95,1941.5,1941.1,3.48410364]
[1741966263242,5.95,1941.5,1941.3,5.15104]
[1741966263443,5.15166,1941.2,1941.0,0.7189]
[1741966263747,5.15166,1941.2,1940.8,11.474]
[1741966263748,0.8007,1941.2,1940.9,5.15222]
[1741966263922,5.9828,1941.4,1940.9,5.15207]
[1741966264121,5.9828,1941.4,1941.0,5.15188]
[1741966264122,11.17205944,1941.4,1941.0,5.15188]
[1741966264323,0.8318,1941.6,1941.1,0.05151518]
[1741966264538,0.8318,1941.6,1940.7,0.38960786]
[1741966264539,5.15182,1941.1,1940.8,5.314]
[1741966264924,0.03813944,1941.1,1940.8,10.46647]
[1741966265124,5.18940944,1941.3,1940.9,5.871]
[1741966265451,0.03813944,1941.3,1940.8,10.4665]
[1741966265746,5.18935944,1941.3,1940.9,5.15212]
[1741966266051,5.18943944,1941.3,1940.9,5.15212]
[1741966266728,0.03813944,1941.3,1941.0,5.15191]
[1741966267131,0.03813944,1941.3,1940.9,5.15224]
[1741966267328,0.7834,1941.9,1941.2,3.48410364]
[1741966267651,5.18801944,1941.8,1941.3,10.47317]
[1741966267845,5.15092,1941.4,1941.3,5.322]
[1741966268046,0.7822,1941.5,1941.0,8.81010364]
[1741966268047,5.15135,1941.3,1941.0,8.81010364]
[1741966268230,10.30272,1941.3,1941.0,9.27997718]
[1741966268432,0.7822,1941.5,1941.0,14.43171718]
[1741966268735,0.7822,1941.5,1941.1,5.15155]
[1741966268736,5.93288,1941.5,1941.1,5.15155]
[1741966268940,0.03813944,1941.4,1941.1,5.15155]
[1741966269249,5.15127,1941.3,1941.0,10.7231489]
[1741966269448,5.15145,1941.2,1941.0,9.27997718]
[1741966269655,5.18958944,1941.2,1941.0,0.46987354]
[1741966269819,0.03813944,1941.2,1940.9,5.321]
[1741966270020,0.7822,1941.5,1941.1,5.15152]
[1741966270224,0.03813944,1941.4,1941.1,5.15151]
[1741966270421,5.15141,1941.3,1940.8,4.20300364]
[1741966270734,5.15141,1941.3,1940.9,5.57238036]
[1741966271054,0.03813944,1941.4,1941.1,5.15159]
[1741966271249,0.7822,1941.5,1941.2,5.15143]
[1741966271431,11.12191944,1941.5,1941.0,10.48989]
[1741966271631,11.08378,1941.5,1941.0,10.48989]
[1741966271832,0.7822,1941.5,1941.2,5.15135]
[1741966272149,5.97112944,1941.5,1941.1,6.200629]
[1741966272352,0.82033944,1941.5,1941.1,6.200549]
[1741966272652,0.7678,1941.7,1941.2,0.7189]
[1741966272822,5.18868944,1941.6,1941.2,5.87028]
[1741966273026,5.91796,1941.7,1941.3,5.15105]
[1741966273354,5.15039,1941.6,1941.2,2.27439326]
[1741966273526,5.18853944,1941.6,1941.2,0.7189]
[1741966273723,5.18853944,1941.6,1941.2,5.87028]
[1741966274350,5.15075,1941.5,1941.1,5.15149]
[1741966274553,5.18888944,1941.5,1941.1,5.15149]
[1741966275021,0.03813944,1941.5,1941.1,5.15149]
[1741966275226,5.918,1941.7,1941.2,5.15134]
[1741966275428,10.33930944,1941.6,1941.2,5.15134]
[1741966275760,5.15071,1941.5,1941.0,16.8306896]
[1741966275955,5.15127,1941.3,1941.0,3.4700196]
[1741966276137,5.18966944,1941.2,1941.0,0.4700196]
[1741966276544,0.7971,1941.3,1941.0,8.57158077]
[1741966276759,5.94829,1941.3,1941.0,3.41978077]
[1741966276941,5.98642944,1941.3,1941.0,3.41978077]
[1741966277147,0.83523944,1941.3,1941.0,8.10170117]
[1741966277465,11.06132,1941.5,1941.1,5.15161]
[1741966277664,5.15097,1941.4,1941.0,9.42702229]
[1741966277838,5.91056,1941.5,1941.1,5.15159]
[1741966278230,5.95,1941.6,1941.2,2.94976117]
[1741966278477,5.94815944,1941.7,1941.2,3.66866117]
[1741966278685,10.30108,1941.6,1941.2,8.82005117]
[1741966278846,5.18893944,1941.5,1941.2,5.06583329]
[1741966279037,5.18893944,1941.5,1941.2,2.58719898]
[1741966279240,5.18893944,1941.5,1941.2,0.47112686]
[1741966279437,5.15102,1941.4,1941.2,0.47112686]
[1741966279838,0.03813944,1941.5,1941.2,0.47112686]
[1741966280035,0.7599,1941.7,1941.3,5.15096]
[1741966280270,0.7599,1941.7,1941.2,3.47240057]
[1741966280271,5.18861944,1941.6,1941.2,5.62248686]
[1741966280469,5.91012,1941.7,1941.3,10.86448869]
[1741966280767,5.94825944,1941.7,1941.3,5.71326869]
[1741966280970,5.15044,1941.6,1941.2,2.94976117]
[1741966281179,5.18888944,1941.5,1941.1,5.15165]
[1741966281468,5.18888944,1941.5,1941.1,5.62277686]
[1741966281842,5.18888944,1941.5,1941.1,5.62266686]
[1741966282043,5.18879944,1941.5,1941.1,5.62266686]
[1741966282366,0.7599,1941.7,1941.2,5.1512]
[1741966282367,5.9101,1941.7,1941.2,5.1512]
[1741966282687,0.03813944,1941.6,1941.2,3.42088803]
[1741966282842,0.03813944,1941.6,1941.2,5.62247686]
[1741966282843,5.1504,1941.6,1941.2,5.62247686]
[1741966283042,5.15068,1941.5,1941.2,0.47112686]
[1741966283244,5.15077,1941.5,1941.3,0.47112686]
[1741966283564,5.18905944,1941.4,1941.3,0.47112686]
[1741966283944,5.15077,1941.5,1941.3,0.47112686]
[1741966284143,0.7599,1941.7,1941.2,2.94976117]
[1741966284382,0.03813944,1941.6,1941.3,0.29497612]
[1741966284566,0.7599,1941.7,1941.3,0.29497612]
[1741966284745,0.7599,1941.7,1941.3,5.49756207]
[1741966285080,0.7599,1941.7,1941.4,10.30166]
[1741966285279,0.7599,1941.7,1941.4,5.15077]
[1741966285579,0.7599,1941.7,1941.3,5.44606612]
[1741966285580,5.94817944,1941.7,1941.3,5.44606612]
[1741966285781,5.94817944,1941.7,1941.3,0.29497612]
[1741966285990,0.79803944,1941.7,1941.3,0.29497612]
[1741966286186,0.79803944,1941.7,1941.2,0.47111159]
[1741966286187,0.03813944,1941.6,1941.2,0.47111159]
[1741966286485,5.1504,1941.6,1941.2,0.47111159]
[1741966286648,5.15076,1941.5,1941.2,0.47111159]
[1741966286985,0.03813944,1941.4,1941.2,0.47111159]
[1741966287387,5.15076,1941.5,1941.2,0.47111159]
[1741966287747,0.03813944,1941.5,1941.2,5.15142]
[1741966288092,5.91003,1941.7,1941.2,6.76148216]
[1741966288253,0.7599,1941.7,1941.4,5.15091]
[1741966288456,5.15041,1941.6,1941.2,8.10103117]
[1741966288675,5.15041,1941.6,1941.2,2.94976117]
[1741966288676,5.15039,1941.6,1941.2,2.94976117]
[1741966288860,5.18887944,1941.5,1941.1,8.62279159]
[1741966289044,5.15039,1941.6,1941.2,5.15142]
[1741966289252,5.15066,1941.5,1941.1,16.05047587]
[1741966289607,5.15075,1941.5,1941.2,0.47111159]
[1741966289753,5.18852944,1941.6,1941.2,5.62254159]
[1741966290159,5.18852944,1941.6,1941.2,0.47111159]
[1741966290359,5.18852944,1941.6,1941.2,5.62251159]
[1741966290360,10.33908944,1941.6,1941.2,5.62251159]
[1741966290886,5.15039,1941.6,1941.2,10.77380159]
[1741966291092,10.33908944,1941.6,1941.2,7.22739518]
[1741966291459,5.15067,1941.5,1941.2,2.07610518]
[1741966292388,5.18852944,1941.6,1941.2,2.07610518]
[1741966292594,5.18852944,1941.6,1941.2,12.37888518]
[1741966292756,5.18852944,1941.6,1941.2,7.22746518]
[1741966292961,5.18852944,1941.6,1941.2,12.37877518]
[1741966293162,5.18852944,1941.6,1941.2,7.22741518]
[1741966293457,5.18852944,1941.6,1941.2,5.62242159]
[1741966293664,5.18852944,1941.6,1941.2,0.47111159]
[1741966293864,5.18852944,1941.6,1941.2,5.62255159]
[1741966294060,5.18852944,1941.6,1941.2,10.77388159]
[1741966294266,5.91005,1941.7,1941.3,5.15109]
[1741966294561,5.15039,1941.6,1941.2,8.57228276]
[1741966294760,10.33910944,1941.6,1941.2,10.24467904]
[1741966294999,5.15108,1941.4,1941.2,0.47111159]
[1741966295298,5.18921944,1941.4,1941.2,0.47111159]
[1741966295507,5.15118,1941.3,1941.2,0.47111159]
[1741966295796,5.91568,1941.3,1941.2,0.47111159]
[1741966295959,5.91568,1941.3,1941.1,0.47111159]
[1741966295960,5.91705,1941.2,1941.1,0.47111159]
[1741966296166,7.06201244,1941.2,1941.1,0.47111159]
[1741966297105,0.80373944,1941.2,1940.9,2.94976117]
[1741966297292,5.95407,1941.4,1941.0,10.30373]
[1741966297594,0.03813944,1941.3,1941.0,5.15186]
[1741966297793,0.03813944,1941.3,1941.0,1.32538312]
[1741966297999,0.03813944,1941.3,1940.9,8.10187117]
[1741966298296,5.18940944,1941.3,1940.8,8.8712]
[1741966298469,5.18940944,1941.3,1940.9,5.62332159]
[1741966298668,0.03813944,1941.3,1940.9,5.62321159]
[1741966298904,0.03813944,1941.3,1941.0,0.56232116]
[1741966299069,5.15198,1941.0,1940.9,0.47111159]
[1741966299269,5.15151,1941.2,1940.9,0.47111159]
[1741966299510,5.15154,1941.2,1940.9,0.47111159]
[1741966299812,5.15198,1941.0,1940.9,0.47111159]
[1741966300112,5.19011944,1941.0,1940.6,8.82169117]
[1741966300270,5.19011944,1941.0,1940.6,7.26932612]
[1741966300474,0.03813944,1941.0,1940.6,15.37194729]
[1741966300781,5.15145,1941.2,1940.8,8.10214117]
[1741966300983,0.82173944,1941.3,1940.8,2.94976117]
[1741966301182,5.18959944,1941.2,1940.8,8.10224117]
[1741966301466,5.15179,1941.1,1940.8,3.80714947]
[1741966301723,5.18992944,1941.1,1940.8,2.94976117]
[1741966302023,5.1524,1940.9,1940.7,0.47164182]
[1741966302225,5.15251,1940.8,1940.7,0.47164182]
[1741966302515,5.94361,1940.8,1940.7,0.47164182]
[1741966302722,6.49361,1940.8,1940.7,0.47164182]
[1741966303025,7.69635044,1940.8,1940.7,0.47164182]
[1741966303184,5.15351,1940.5,1940.1,0.47164182]
[1741966303385,5.15351,1940.5,1940.1,5.62592182]
[1741966303593,10.30702,1940.5,1940.1,5.62592182]
[1741966303799,0.03813944,1940.4,1940.1,0.47164182]
[1741966304000,5.19176944,1940.4,1940.1,0.47164182]
[1741966304184,5.1541,1940.2,1940.1,0.47164182]
[1741966304384,6.49857,1940.1,1940.0,0.57164182]
[1741966304583,6.49857,1940.1,1940.0,1.82e-06]
[1741966305193,0.8315,1939.6,1938.9,0.7189]
[1741966305522,0.8315,1939.4,1938.7,8.15791]
[1741966305724,0.03813944,1939.3,1938.9,5.1573]
[1741966305933,0.03813944,1939.3,1939.0,8.15729]
[1741966306088,0.03813944,1939.5,1939.3,3.0]
[1741966306490,0.7504,1939.8,1939.3,8.15648]
[1741966306719,0.03813944,1939.7,1939.4,5.1562]
[1741966307285,0.03813944,1939.7,1939.3,5.15648]
[1741966307495,0.03813944,1939.7,1939.3,5.15639]
[1741966307726,0.03813944,1939.7,1939.4,3.0]
[1741966307990,0.03813944,1939.7,1939.3,0.815639]
[1741966308217,0.03813944,1939.7,1939.2,3.0]
[1741966308426,0.03813944,1939.7,1939.2,5.15666]
[1741966308583,0.03813944,1939.7,1939.2,3.0]
[1741966309229,0.03813944,1939.7,1939.0,5.15727]
[1741966309398,0.03813944,1939.7,1938.9,0.3814492]
[1741966309399,0.03813944,1939.7,1939.1,3.0]
[1741966309595,0.03813944,1939.7,1938.9,5.5389992]
[1741966309596,0.7555,1939.6,1938.9,3.3814492]
[1741966309906,0.7555,1939.6,1938.8,5.87667]
[1741966309907,0.03813944,1939.5,1938.8,5.87667]
[1741966310100,0.03813944,1939.5,1938.9,5.15756]
[1741966310286,0.03813944,1939.5,1938.9,1.103423]
[1741966310492,0.03813944,1939.5,1939.1,5.15684]
[1741966310721,0.03813944,1939.5,1939.4,5.15623]
[1741966310921,5.395,1940.1,1939.4,5.15613]
[1741966311223,0.03813944,1940.0,1939.3,5.15642]
[1741966311421,0.7838,1939.9,1939.3,5.15642]
[1741966311723,0.58145338,1940.0,1939.7,5.15532]
[1741966311724,0.03813944,1940.0,1939.7,5.15532]
[1741966311926,0.03813944,1940.0,1939.6,5.15569]
[1741966312090,0.03813944,1940.0,1939.6,5.971259]
[1741966312625,0.8256,1940.1,1939.7,0.7189]
[1741966312924,6.7083858,1940.8,1939.7,0.7189]
[1741966312925,0.86373944,1940.3,1939.8,5.15506]
[1741966313091,0.86373944,1940.3,1939.7,5.87427]
[1741966313692,0.86373944,1940.3,1939.6,5.971239]
[1741966313895,6.01774944,1940.3,1939.5,3.7189]
[1741966314121,0.8256,1940.2,1939.5,3.0]
[1741966314325,0.03813944,1940.1,1939.6,5.1555]
[1741966315128,0.03813944,1940.1,1939.5,3.37849119]
[1741966315443,0.03813944,1940.1,1939.7,5.15521]
[1741966315812,0.03813944,1940.1,1939.6,5.15567]
[1741966316125,0.03813944,1940.1,1939.8,5.15495]
[1741966316327,0.03813944,1940.1,1939.7,3.7189]
[1741966316493,0.8256,1940.2,1939.8,5.15496]
[1741966317116,0.03813944,1940.1,1939.8,5.15506]
[1741966317822,0.03813944,1940.1,1939.8,3.0]
[1741966318030,0.7743,1940.4,1939.9,5.45478]
[1741966318236,0.03813944,1940.3,1939.9,5.15478]
[1741966318743,0.03813944,1940.3,1940.0,5.15441]
[1741966319038,0.03813944,1940.3,1939.9,5.1549]
[1741966319398,0.03813944,1940.3,1939.8,3.0]
[1741966319631,0.03813944,1940.3,1939.9,0.3]
[1741966320009,0.03813944,1940.3,1939.8,8.15506]
[1741966320546,0.03813944,1940.3,1939.8,3.0]
[1741966320720,0.03813944,1940.3,1939.9,5.15476]
[1741966320924,0.03813944,1940.3,1939.8,3.0]
[1741966321138,0.03813944,1940.3,1939.9,10.30942]
[1741966321313,0.03813944,1940.3,1939.9,6.485592]
[1741966321816,0.03813944,1940.3,1940.0,5.15463]
[1741966322009,0.03813944,1940.3,1940.0,5.15437]
[1741966322424,0.03813944,1940.3,1939.9,1.330942]
[1741966322650,0.03813944,1940.3,1940.2,3.0]
[1741966322936,0.8207,1941.0,1940.1,5.87306]
[1741966323108,0.8207,1940.9,1940.2,10.54997]
[1741966323307,0.8207,1940.9,1940.2,15.70395]
[1741966323612,5.91684,1940.8,1940.0,8.15461]
[1741966323827,5.91686,1940.8,1940.0,8.15463]
[1741966324029,0.7917,1940.8,1940.1,5.15411]
[1741966324346,0.7917,1940.8,1940.1,8.64608653]
[1741966324646,0.7917,1940.8,1940.2,6.01855865]
[1741966324939,0.7917,1940.8,1940.3,10.3073]
[1741966325143,0.7917,1940.8,1940.3,5.1536]
[1741966325436,0.7917,1940.8,1940.2,6.01870865]
[1741966325437,0.7917,1940.8,1940.5,5.15315]
[1741966326347,0.7917,1940.8,1940.7,5.15277]
[1741966326558,0.7917,1940.8,1940.3,8.10437764]
[1741966326746,0.7917,1940.8,1940.0,5.1545]
[1741966327040,0.7557,1940.7,1940.0,8.1545]
[1741966327537,0.7557,1940.7,1940.0,5.15454]
[1741966327838,0.7557,1940.7,1940.1,5.15413]
[1741966328062,1.37147,1940.7,1940.2,2.95063764]
[1741966328211,0.758,1941.1,1940.4,2.95063764]
[1741966328644,0.8018,1941.0,1940.2,5.403]
[1741966328845,0.8018,1940.7,1940.4,5.15341]
[1741966329147,0.8018,1940.7,1940.3,5.15371]
[1741966329331,0.8018,1940.7,1940.5,5.15315]
[1741966329538,0.8018,1940.7,1940.4,5.15357]
[1741966329847,0.8018,1940.7,1940.4,3.0]
[1741966330154,1.304,1941.1,1940.5,5.15331]
[1741966330455,1.304,1941.1,1940.4,8.15342]
[1741966330656,0.754,1941.1,1940.6,5.15298]
[1741966331142,0.754,1941.1,1940.5,5.15331]
[1741966331341,0.754,1941.1,1940.4,11.10420764]
[1741966331545,0.7522,1941.0,1940.3,5.15376]
[1741966332246,0.8305,1940.8,1940.2,10.9359963]
[1741966332545,0.8305,1940.8,1940.3,5.15364]
[1741966332743,0.8305,1940.8,1940.3,5.15365]
[1741966332919,0.8305,1940.8,1940.2,10.9359663]
[1741966333352,0.8305,1940.8,1940.1,5.95063764]
[1741966333659,0.8305,1940.8,1940.1,3.0]
[1741966333861,0.8305,1940.8,1940.2,5.15408]
[1741966334063,0.8305,1940.8,1940.3,2.95063764]
[1741966334246,0.8305,1940.8,1940.4,5.15348]
[1741966334453,0.8305,1940.8,1940.5,5.1533]
[1741966334653,0.8305,1940.8,1940.4,5.15348]
[1741966334974,0.8305,1940.8,1940.1,8.15435]
[1741966335471,0.8305,1940.8,1940.1,3.0]
[1741966335682,0.7512,1940.7,1940.0,3.0]
[1741966335877,0.7512,1940.7,1940.1,5.15426]
[1741966336038,0.7512,1940.7,1940.1,5.15437]
[1741966336246,0.8266,1940.5,1939.9,5.15473]
[1741966336479,0.8266,1940.3,1939.7,6.2668083]
[1741966336796,0.7779,1940.1,1939.5,5.1559]
[1741966336953,0.7779,1939.9,1939.7,0.47132184]
[1741966337945,0.7779,1939.9,1939.7,5.15541]
[1741966338374,0.7944,1940.1,1939.6,10.3112]
[1741966338671,0.7944,1940.1,1939.8,5.15503]
[1741966338871,0.7944,1940.1,1939.9,5.15485]
[1741966339171,0.7944,1940.1,1939.6,6.18675]
[1741966339374,0.7944,1940.1,1939.6,1.03112]
[1741966339558,0.7944,1940.1,1939.6,5.15544]
[1741966339946,0.7944,1940.1,1939.5,3.0]
[1741966340490,0.7944,1940.1,1939.7,5.15528]
[1741966340702,0.7944,1940.1,1939.6,5.15554]
[1741966340907,0.7944,1940.1,1939.5,5.15593]
[1741966341494,0.7944,1940.1,1939.4,8.15619]
[1741966341890,10.85864,1940.2,1939.4,3.0]
[1741966341891,5.15479,1940.0,1939.4,3.0]
[1741966342095,0.7714,1939.8,1939.1,5.15701]
[1741966342292,0.7714,1939.7,1939.3,5.1563]
[1741966342704,0.7714,1939.7,1939.2,8.10738764]
[1741966342872,5.15386,1940.3,1939.2,8.10738764]
[1741966342873,0.8226,1940.2,1939.5,5.15596]
[1741966343076,0.8226,1940.2,1939.8,5.155]
[1741966343382,0.8226,1940.2,1939.9,5.15479]
[1741966343777,0.8226,1940.2,1939.9,10.30952]
[1741966343979,0.8226,1940.2,1939.6,8.10632764]
[1741966344187,0.8226,1940.2,1939.9,5.15466]
[1741966344408,0.8226,1940.2,1940.0,5.15459]
[1741966344572,0.8226,1940.2,1940.0,5.15446]
[1741966345108,0.8226,1940.2,1939.9,5.1548]
[1741966345309,0.8226,1940.2,1940.0,5.1546]
[1741966346005,0.8226,1940.2,1940.0,5.15453]
[1741966346306,0.7885,1941.0,1940.1,5.15431]
[1741966346479,0.7885,1941.0,1940.4,5.15342]
[1741966346680,0.7885,1940.8,1940.4,5.15342]
[1741966346877,0.7885,1940.8,1940.7,5.15277]
[1741966347216,0.7885,1940.8,1940.6,5.15295]
[1741966347812,0.7885,1940.8,1940.7,5.15277]
[1741966347980,0.818,1941.2,1940.8,5.15235]
[1741966348386,0.818,1941.2,1941.1,5.15171]
[1741966348693,0.818,1941.2,1940.9,5.15224]
[1741966349029,14.9702,1942.2,1941.4,5.1509]
[1741966349030,5.14916,1942.1,1941.4,5.1509]
[1741966349314,0.7953,1942.0,1941.5,5.15064]
[1741966349615,0.7953,1942.0,1941.4,5.15072]
[1741966349616,0.7953,1942.0,1941.6,5.15037]
[1741966349785,0.7953,1942.0,1941.7,5.15]
[1741966349989,0.7953,1942.0,1941.6,10.30062]
[1741966350184,0.7953,1942.0,1941.9,5.14959]
[1741966350390,0.7953,1942.0,1941.6,5.15022]
[1741966350816,0.7953,1942.0,1941.7,5.15002]
[1741966351121,0.7953,1942.0,1941.6,5.15022]
[1741966351420,0.7953,1942.0,1941.7,5.15011]
[1741966351605,0.7953,1942.0,1941.7,5.14993]
[1741966351808,0.7851,1941.8,1941.2,5.15143]
[1741966351993,0.7851,1941.6,1941.0,5.15192]
[1741966352516,0.7851,1941.6,1940.8,5.15248]
[1741966352736,0.7694,1941.3,1940.7,5.15252]
[1741966352934,5.79834,1941.3,1940.6,22.19797]
[1741966353225,1.3194,1941.2,1940.6,5.1529]
[1741966353528,1.3194,1941.2,1940.7,5.15276]
[1741966353905,0.7694,1941.2,1940.7,5.15276]
[1741966354305,0.7694,1941.2,1940.6,3.0]
[1741966354633,0.8187,1941.6,1941.2,5.1514]
[1741966355118,0.8187,1941.6,1941.3,5.15112]
[1741966355421,0.8187,1941.6,1941.2,5.15126]
[1741966356044,5.96911,1941.6,1940.9,5.15204]
[1741966356213,0.8187,1941.6,1941.0,5.15187]
[1741966356537,0.8187,1941.6,1941.1,5.1516]
[1741966356741,0.8187,1941.6,1941.1,5.1515]
[1741966356945,0.8187,1941.6,1941.1,10.30304]
[1741966357239,0.8187,1941.6,1941.2,5.15143]
[1741966357434,0.8187,1941.6,1941.3,5.15106]
[1741966357635,0.8187,1941.6,1941.3,5.15098]
[1741966358005,0.8187,1941.6,1941.3,5.15106]
[1741966358207,0.8187,1941.6,1941.3,0.515106]
[1741966358436,0.8187,1941.6,1941.2,5.15134]
[1741966358637,0.8187,1941.6,1941.2,5.15133]
[1741966358947,0.8187,1941.6,1940.8,6.07451191]
[1741966359140,0.55,1941.5,1940.9,5.15208]
[1741966359813,5.70068,1941.5,1940.9,5.15208]
[1741966360222,0.55,1941.5,1940.9,5.15208]
[1741966360415,0.55,1941.5,1941.0,5.15182]
[1741966360621,0.55,1941.3,1940.7,5.15271]
[1741966360823,0.55,1941.3,1940.8,5.15241]
[1741966361021,0.8233,1941.2,1940.6,5.15298]
[1741966361237,0.8233,1941.2,1940.7,5.15264]
[1741966361441,0.8233,1941.2,1940.8,5.15233]
[1741966362021,0.8233,1941.2,1940.9,10.30432]
[1741966362207,0.8233,1941.2,1940.9,5.15209]
[1741966362613,0.8233,1941.2,1941.0,5.15198]
[1741966365852,0.7736,1941.5,1941.2,5.15129]
[1741966366053,0.7736,1941.5,1941.3,5.15102]
[1741966366293,0.7736,1941.5,1941.4,5.15092]
[1741966366939,0.7386,1941.5,1941.0,5.15187]
[1741966367172,1.3275,1941.5,1941.2,5.15134]
[1741966367371,0.7386,1941.5,1940.9,5.15224]
[1741966367677,0.7386,1941.5,1941.4,5.15092]
[1741966368358,5.427,1941.9,1941.5,5.15046]
[1741966368559,5.421,1942.4,1942.0,5.14924]
[1741966368736,0.5421,1942.4,1942.0,5.14924]
[1741966368933,3.48221914,1943.1,1941.7,0.7539]
[1741966369151,5.14759,1942.7,1942.0,5.14914]
[1741966369369,5.14787,1942.6,1941.7,6.1899]
[1741966369677,5.43,1942.9,1942.2,5.14878]
[1741966369983,0.7632,1942.7,1942.2,5.14878]
[1741966370274,5.91067,1942.7,1942.1,10.298]
[1741966370446,5.91067,1942.7,1942.2,5.14876]
[1741966370652,5.91067,1942.7,1942.1,5.14895]
[1741966370865,0.7632,1942.7,1942.2,5.14878]
[1741966371042,1.19382,1942.7,1942.3,5.14836]
[1741966371235,1.19382,1942.7,1942.3,5.14842]
[1741966371236,0.7632,1942.7,1942.3,5.14842]
[1741966371940,0.7632,1942.7,1942.2,5.14878]
[1741966371941,5.14774,1942.6,1942.1,5.14904]
[1741966372247,0.7632,1942.7,1942.2,5.1487]
[1741966372461,5.91078,1942.7,1942.1,5.14899]
[1741966372778,5.1478,1942.6,1942.1,5.14899]
[1741966372943,0.51478,1942.5,1942.1,5.14895]
[1741966373143,5.91078,1942.7,1942.1,5.14895]
[1741966373343,5.69784,1942.6,1942.0,5.14928]
[1741966373746,5.69784,1942.6,1942.0,10.29847]
[1741966374046,0.55,1942.6,1942.2,5.1487]
[1741966374581,0.55,1942.6,1942.1,5.14903]
[1741966374754,5.6979,1942.6,1942.0,5.14923]
[1741966375073,5.71789,1942.5,1941.9,5.1494]
[1741966375377,0.56979,1942.5,1942.0,5.14916]
[1741966375779,0.56979,1942.5,1942.0,5.14914]
[1741966375974,0.56979,1942.5,1942.1,10.29779]
[1741966376139,0.55,1942.6,1942.2,5.14876]
[1741966376349,0.55,1942.6,1942.1,5.14889]
[1741966376542,0.7706,1942.4,1941.8,5.14982]
[1741966376741,0.55,1942.6,1941.7,5.14994]
[1741966376742,5.69889,1942.2,1941.7,5.14994]
[1741966376974,1.328089,1942.1,1941.7,5.14994]
[1741966377243,0.7582,1942.1,1941.9,5.14952]
[1741966377547,0.7582,1942.1,1941.9,5.14943]
[1741966377768,0.7582,1942.1,1942.0,5.14933]
[1741966378146,0.7582,1942.1,1941.8,5.14982]
[1741966378347,0.7582,1942.1,1941.9,5.14958]
[1741966378558,0.7582,1942.1,1941.8,5.14969]
[1741966378758,0.8009,1942.4,1942.0,5.14922]
[1741966378983,0.8009,1942.4,1941.8,0.514969]
[1741966379152,0.8009,1942.4,1942.2,5.14859]
[1741966379471,0.8009,1942.4,1942.1,5.14891]
[1741966379873,0.8009,1942.4,1942.2,5.14857]
[1741966380275,0.8009,1942.4,1942.0,5.14932]
[1741966380480,0.8009,1942.4,1941.9,5.14957]
[1741966380648,5.94932,1942.4,1941.9,5.14957]
[1741966380844,0.594932,1942.3,1941.9,5.14957]
[1741966381061,0.594932,1942.3,1941.9,5.14942]
[1741966381256,0.8009,1942.4,1941.9,5.14942]
[1741966381460,0.8267,1942.2,1941.7,5.14996]
[1741966381667,5.97558,1942.2,1941.7,5.14996]
[1741966381860,0.55,1942.1,1941.6,5.15037]
[1741966382063,0.55,1942.1,1941.6,10.30053]
[1741966382265,0.8267,1942.2,1941.5,3.0]
[1741966382482,0.8267,1942.2,1941.9,5.14947]
[1741966382683,0.8267,1942.2,1942.1,5.14906]
[1741966382849,10.54821,1942.8,1942.2,5.14856]
[1741966383251,10.54821,1942.8,1941.9,5.90349]
[1741966383252,5.14695,1942.9,1942.3,5.14834]
[1741966383452,0.8134,1942.8,1942.1,5.14906]
[1741966383679,0.8255,1943.5,1942.5,8.63021914]